[Event "360 One Wealth GP-3 2024"]
[Site "Mumbai"]
[Date "2024.02.08"]
[Round "4.3"]
[White "Soni Deepak R"]
[Black "Arnav Mahesh Koli"]
[Result "0-1"]
[ECO "B07"]
[WhiteElo "1445"]
[BlackElo "1755"]
[Annotator "NA RC"]
[PlyCount "70"]
[EventDate "2024.02.04"]
[EventType "swiss"]
[EventCountry "IND"]
[SourceTitle "playchess.com"]
[Source "ChessBase"]
[SourceQuality "1"]
[TimeControl "5400+30"]

1. d4 {[%emt 0:01:32]} Nf6 {[%emt 0:00:08]} 2. Bf4 {[%emt 0:00:29]} d6 {[%emt 0:01:03]} 3. Nc3 {[%emt 0:00:46]} g6 {[%emt 0:00:06]} 4. e4 {[%emt 0:00:49]} Bg7 {[%emt 0:00:05]} 5. Qd2 {[%emt 0:01:52]} O-O {[%emt 0:02:22]} 6. O-O-O {[%emt 0:01:04]} c6 {[%emt 0:00:20]} 7. f3 {[%emt 0:02:47]} b5 {[%emt 0:00:28]} 8. Bh6 {[%emt 0:03:54]} Bxh6 {[%emt 0:05:50]} 9. Qxh6 {[%emt 0:00:25]} Qa5 {[%emt 0:00:14]} 10. Kb1 {[%emt 0:04:40]} b4 {[%emt 0:03:14]} 11. Nce2 {[%emt 0:01:51]} c5 {[%emt 0:01:15]} 12. dxc5 {[%emt 0:10:31]} dxc5 {[%emt 0:00:55]} 13. Nf4 {[%emt 0:02:52]} e5 {[%emt 0:03:55]} 14. Nd5 {[%emt 0:01:12]} Nxd5 {[%emt 0:00:51]} 15. exd5 {[%emt 0:00:28]} Nd7 {[%emt 0:03:23]} 16. h4 {[%emt 0:01:25]} Nf6 {[%emt 0:01:45]} 17. g4 {[%emt 0:03:08]} Bb7 {[%emt 0:03:10]} 18. h5 {[%emt 0:01:51]} Rfd8 {[%emt 0:08:37]} 19. hxg6 {[%emt 0:01:38]} fxg6 {[%emt 0:01:06]} 20. g5 {[%emt 0:11:55]} Bxd5 {[%emt 0:00:46]} 21. Rxd5 {[%emt 0:01:23]} Nxd5 {[%emt 0:02:47]} 22. Qxh7+ {[%emt 0:00:32]} Kf8 {[%emt 0:00:02]} 23. Qh8+ {[%emt 0:07:41]} Kf7 {[%emt 0:03:05]} 24. Rh7+ {[%emt 0:00:47]} Ke6 {[%emt 0:00:46]} 25. Bh3+ {[%emt 0:00:08]} Kd6 {[%emt 0:00:02]} 26. Qg7 {[%emt 0:00:27]} c4 {[%emt 0:00:55]} 27. Bd7 {[%emt 0:15:27]} b3 {[%emt 0:10:19]} 28. Qxg6+ {[%emt 0:02:32]} Kc5 {[%emt 0:00:02]} 29. Qc6+ {[%emt 0:00:21]} Kd4 {[%emt 0:00:02]} 30. Rh4+ {[%emt 0:11:04]} Ke3 {[%emt 0:03:32]} 31. Re4+ {[%emt 0:00:33]} Kf2 {[%emt 0:03:32]} 32. Re2+ {[%emt 0:05:50]} Kxg1 {[%emt 0:02:41]} 33. Qxc4 {[%emt 0:00:30]} Nc3+ {[%emt 0:01:57]} 34. bxc3 {[%emt 0:01:35]} Qxa2+ {[%emt 0:00:04]} 35. Kc1 {[%emt 0:00:29]} b2+ {[%emt 0:00:01]} 0-1

[Event "360 One Wealth GP-3 2024"]
[Site "Mumbai"]
[Date "2024.02.08"]
[Round "4.4"]
[White "Mishra Sanjeev"]
[Black "Shreyas G Kaushik"]
[Result "1-0"]
[ECO "B44"]
[WhiteElo "1683"]
[BlackElo "1416"]
[Annotator "NA RC"]
[PlyCount "117"]
[EventDate "2024.02.04"]
[EventType "swiss"]
[EventCountry "IND"]
[SourceTitle "playchess.com"]
[Source "ChessBase"]
[SourceQuality "1"]
[TimeControl "5400+30"]

1. e4 {[%emt 0:00:03]} c5 {[%emt 0:00:06]} 2. Nf3 {[%emt 0:00:10]} e6 {[%emt 0:00:07]} 3. c4 {[%emt 0:00:17]} Nc6 {[%emt 0:00:10]} 4. d4 {[%emt 0:00:12]} cxd4 {[%emt 0:00:27]} 5. Nxd4 {[%emt 0:00:02]} Nf6 {[%emt 0:01:58]} 6. Nc3 {[%emt 0:00:06]} Bb4 {[%emt 0:00:31]} 7. Qd3 {[%emt 0:07:43]} O-O {[%emt 0:14:56]} 8. Be2 {[%emt 0:02:53]} Bxc3+ {[%emt 0:08:51]} 9. bxc3 {[%emt 0:00:14]} Qa5 {[%emt 0:02:16]} 10. O-O {[%emt 0:00:50]} Ne5 {[%emt 0:04:33]} 11. Qc2 {[%emt 0:01:07]} d5 {[%emt 0:01:42]} 12. exd5 {[%emt 0:00:31]} exd5 {[%emt 0:00:16]} 13. Nb3 {[%emt 0:01:23]} Qa4 {[%emt 0:02:48]} 14. cxd5 {[%emt 0:00:30]} Nxd5 {[%emt 0:00:31]} 15. Rd1 {[%emt 0:00:23]} Qc6 {[%emt 0:02:29]} 16. c4 {[%emt 0:01:58]} Ne7 {[%emt 0:03:41]} 17. Ba3 {[%emt 0:02:19]} Qf6 {[%emt 0:04:21]} 18. Rd6 {[%emt 0:02:59]} Be6 {[%emt 0:02:12]} 19. Rad1 {[%emt 0:02:43]} Rfe8 {[%emt 0:04:48]} 20. Nc5 {[%emt 0:05:18]} Nf5 {[%emt 0:00:55]} 21. R6d2 {[%emt 0:01:53]} Qg5 {[%emt 0:04:15]} 22. Qe4 {[%emt 0:18:38]} Ng6 {[%emt 0:07:47]} 23. Nxe6 {[%emt 0:01:12]} Rxe6 {[%emt 0:00:30]} 24. Qxb7 {[%emt 0:00:31]} Rae8 {[%emt 0:00:24]} 25. Bf1 {[%emt 0:00:55]} Ne3 {[%emt 0:07:34]} 26. Rd5 {[%emt 0:09:31]} Nxd5 {[%emt 0:04:43]} 27. cxd5 {[%emt 0:00:20]} Rb6 {[%emt 0:00:45]} 28. Qxa7 {[%emt 0:01:14]} Rbb8 {[%emt 0:00:56]} 29. Bc1 {[%emt 0:05:43]} Qf6 {[%emt 0:02:22]} 30. Qa4 {[%emt 0:02:36]} Red8 {[%emt 0:01:23]} 31. Bc4 {[%emt 0:01:32]} Nf4 {[%emt 0:02:54]} 32. Be3 {[%emt 0:06:59]} Qe5 {[%emt 0:01:53]} 33. Qa5 {[%emt 0:06:41]} Nxg2 {[%emt 0:00:57]} 34. Bb6 {[%emt 0:02:22]} Qg5 {[%emt 0:03:53]} 35. Bxd8 {[%emt 0:00:27]} Rxd8 {[%emt 0:00:05]} 36. Kh1 {[%emt 0:03:59]} Nf4 {[%emt 0:01:40]} 37. Bf1 {[%emt 0:02:14]} Rf8 {[%emt 0:01:42]} 38. Qc3 {[%emt 0:00:42]} Qh5 {[%emt 0:01:30]} 39. Rd4 {[%emt 0:01:45]} Nxd5 {[%emt 0:01:18]} 40. Qa5 {[%emt 0:02:33]} Qf3+ {[%emt 0:00:42]} 41. Bg2 {[%emt 0:00:01]} Qxf2 {[%emt 0:00:15]} 42. Rxd5 {[%emt 0:00:10]} Qe3 {[%emt 0:01:45]} 43. Qd2 {[%emt 0:00:36]} Qe7 {[%emt 0:00:24]} 44. Rd7 {[%emt 0:00:21]} Qf6 {[%emt 0:00:22]} 45. Qd4 {[%emt 0:00:45]} Qe6 {[%emt 0:00:37]} 46. Qd2 {[%emt 0:00:33]} Qf6 {[%emt 0:00:19]} 47. Qe2 {[%emt 0:02:22]} Qa1+ {[%emt 0:00:56]} 48. Rd1 {[%emt 0:00:05]} Qc3 {[%emt 0:00:12]} 49. Qf3 {[%emt 0:00:17]} Qa5 {[%emt 0:00:20]} 50. Qd5 {[%emt 0:00:10]} Qa3 {[%emt 0:00:05]} 51. Qb3 {[%emt 0:00:22]} Qa5 {[%emt 0:00:40]} 52. a4 {[%emt 0:00:23]} g6 {[%emt 0:00:12]} 53. Qb5 {[%emt 0:00:09]} Qa7 {[%emt 0:00:21]} 54. a5 {[%emt 0:01:24]} Rb8 {[%emt 0:00:13]} 55. Qd5 {[%emt 0:00:20]} Rb2 {[%emt 0:01:13]} 56. Qe5 {[%emt 0:02:55]} Rb8 {[%emt 0:00:51]} 57. a6 {[%emt 0:00:42]} Rf8 {[%emt 0:00:18]} 58. Bb7 {[%emt 0:00:24]} Qf2 {[%emt 0:00:47]} 59. Qd4 {[%emt 0:00:10]} 1-0

[Event "360 One Wealth GP-3 2024"]
[Site "Mumbai"]
[Date "2024.02.08"]
[Round "4.5"]
[White "Kapadi Yash"]
[Black "Kadkade Ameya"]
[Result "0-1"]
[ECO "E68"]
[WhiteElo "1626"]
[BlackElo "1322"]
[Annotator "NA RC"]
[PlyCount "85"]
[EventDate "2024.02.04"]
[EventType "swiss"]
[EventCountry "IND"]
[SourceTitle "playchess.com"]
[Source "ChessBase"]
[SourceQuality "1"]
[TimeControl "5400+30"]

1. d4 {[%emt 0:21:49]} Nf6 {[%emt 0:00:15]} 2. Nf3 {[%emt 0:00:31]} g6 {[%emt 0:01:06]} 3. g3 {[%emt 0:00:06]} Bg7 {[%emt 0:00:07]} 4. Bg2 {[%emt 0:00:06]} d6 {[%emt 0:00:13]} 5. O-O {[%emt 0:00:08]} O-O {[%emt 0:00:09]} 6. c4 {[%emt 0:00:03]} c6 {[%emt 0:00:27]} 7. Nc3 {[%emt 0:00:06]} Nbd7 {[%emt 0:05:47]} 8. Qc2 {[%emt 0:00:08]} e5 {[%emt 0:01:39]} 9. Rd1 {[%emt 0:00:34]} Qc7 {[%emt 0:09:38]} 10. h3 {[%emt 0:00:48]} Re8 {[%emt 0:00:39]} 11. e4 {[%emt 0:00:09]} exd4 {[%emt 0:04:10]} 12. Nxd4 {[%emt 0:01:40]} Ne5 {[%emt 0:04:41]} 13. b3 {[%emt 0:02:04]} h5 {[%emt 0:09:01]} 14. f4 {[%emt 0:02:41]} Ned7 {[%emt 0:00:07]} 15. Be3 {[%emt 0:11:20]} Nf8 {[%emt 0:04:13]} 16. Rac1 {[%emt 0:02:52]} Bd7 {[%emt 0:02:35]} 17. Qf2 {[%emt 0:04:05]} Qc8 {[%emt 0:07:37]} 18. Kh2 {[%emt 0:11:07]} h4 {[%emt 0:01:25]} 19. gxh4 {[%emt 0:01:44]} Nh5 {[%emt 0:03:40]} 20. Nde2 {[%emt 0:06:11]} Qb8 {[%emt 0:09:05]} 21. Ng3 {[%emt 0:00:58]} Nxg3 {[%emt 0:03:16]} 22. Qxg3 {[%emt 0:00:14]} Qc7 {[%emt 0:05:15]} 23. c5 {[%emt 0:03:39]} dxc5 {[%emt 0:01:27]} 24. Bxc5 {[%emt 0:00:18]} Ne6 {[%emt 0:01:03]} 25. Bd6 {[%emt 0:00:26]} Qa5 {[%emt 0:01:48]} 26. b4 {[%emt 0:03:59]} Qh5 {[%emt 0:01:06]} 27. Bf3 {[%emt 0:01:13]} Qh6 {[%emt 0:00:22]} 28. Ne2 {[%emt 0:03:55]} Rad8 {[%emt 0:02:33]} 29. f5 {[%emt 0:04:14]} Nf8 {[%emt 0:03:29]} 30. Bf4 {[%emt 0:01:36]} Qh7 {[%emt 0:00:37]} 31. h5 {[%emt 0:02:05]} Bh6 {[%emt 0:03:23]} 32. Rd6 {[%emt 0:02:17]} g5 {[%emt 0:06:07]} 33. Bxg5 {[%emt 0:01:13]} Bxg5 {[%emt 0:00:11]} 34. Qxg5+ {[%emt 0:00:19]} Qg7 {[%emt 0:01:01]} 35. Qd2 {[%emt 0:02:51]} Qe5+ {[%emt 0:01:06]} 36. Kh1 {[%emt 0:00:19]} f6 {[%emt 0:03:53]} 37. Qh6 {[%emt 0:03:33]} Re7 {[%emt 0:01:19]} 38. Rg1+ {[%emt 0:03:00]} Kf7 {[%emt 0:00:14]} 39. Rg7+ {[%emt 0:01:20]} Ke8 {[%emt 0:00:19]} 40. Rxf6 {[%emt 0:01:55]} Bxf5 {[%emt 0:03:54]} 41. Rxf8+ {[%emt 0:00:45]} Kd7 {[%emt 0:00:58]} 42. Rxd8+ {[%emt 0:00:56]} Kxd8 {[%emt 0:00:44]} 43. Rxe7 {[%emt 0:00:33]} 0-1

[Event "360 One Wealth GP-3 2024"]
[Site "Mumbai"]
[Date "2024.02.08"]
[Round "4.6"]
[White "Kulkarni, Vikramaditya"]
[Black "Devesh Anil Ambre"]
[Result "1-0"]
[ECO "B22"]
[WhiteElo "2193"]
[BlackElo "1198"]
[Annotator "TA"]
[PlyCount "63"]
[EventDate "2024.02.04"]
[EventType "swiss"]
[EventCountry "IND"]
[SourceTitle "playchess.com"]
[Source "ChessBase"]
[SourceQuality "1"]
[TimeControl "5400+30"]

{[%evp 9,63,12,35,16,30,18,37,22,33,25,73,80,68,60,67,62,114,67,187,186,175,176,168,167,135,154,151,150,269,247,254,212,205,211,223,212,243,239,306,307,306,273,287,240,270,278,378,380,538,543,546,544,539,527,710,712]} 1. e4 {[%emt 0:00:43]} c5 {[%emt 0:00:14]} 2. Nf3 {[%emt 0:00:05][%cal Bg1f3,Bf3d4,Bd4b5][%mdl 32]} g6 {[%emt 0:00:11]} 3. c3 {[%emt 0:00:30]} d5 {[%emt 0:00:26]} 4. exd5 {[%emt 0:00:16]} Qxd5 {[%emt 0:00:07]} 5. d4 {[%emt 0:00:08]} cxd4 {[%emt 0:02:10]} 6. Qxd4 {[%emt 0:01:02]} Qxd4 {[%emt 0:00:55]} 7. Nxd4 {[%emt 0:00:05]} Bg7 {[%emt 0:03:23]} 8. Nb5 {[%emt 0:00:02] White is slightly better.} Na6 {[%emt 0:00:43] Inhibits Nc7+.} 9. Be3 {[%emt 0:00:02][%cal Of1e2]} Bf5 {[%emt 0:33:19]} (9... b6 $11 {feels stronger.}) 10. Bxa7 {[%emt 0:03:09]} Nf6 {[%emt 0:05:19]} 11. Be2 {[%emt 0:06:03]} O-O {[%emt 0:03:27]} 12. N1a3 {[%emt 0:02:30]} Ne4 {[%emt 0:08:32]} (12... Nc7 $14) 13. O-O {[%emt 0:03:00]} (13. Bd4 $16) 13... Nb4 {[%emt 0:07:25]} 14. cxb4 {[%emt 0:05:51]} Bxb2 {[%emt 0:00:25]} 15. Rab1 {[%emt 0:00:22][%cal Ba1b1,Bb1b3,Bb3a3][%mdl 32]} Bxa3 {[%emt 0:07:03]} 16. Rb3 $1 {[%emt 0:00:22]} Nd2 {[%emt 0:04:21]} 17. Rxa3 {[%emt 0:00:19]} Nxf1 {[%emt 0:00:11]} 18. Kxf1 {[%emt 0:00:49] Strongly threatening g4.} Rac8 {[%emt 0:03:25]} (18... Rfc8 $16 19. Bd3 Be6) 19. Be3 {[%emt 0:04:08]} Rfd8 {[%emt 0:03:56]} 20. Nc3 {[%emt 0:07:54]} Bd3 {[%emt 0:03:12]} 21. Ke1 {[%emt 0:00:44]} Bxe2 {[%emt 0:01:20]} 22. Kxe2 {[%emt 0:00:04]} f6 {[%emt 0:04:23]} 23. Bc5 {[%emt 0:00:20]} Kf7 {[%emt 0:00:29]} 24. Ra7 {[%emt 0:01:20]} Rd7 {[%emt 0:00:35]} 25. Na4 {[%emt 0:00:49] [#] Threatens to win with Nb6.} Rc6 {[%emt 0:02:33]} 26. g3 {[%emt 0:04:02]} Re6+ {[%emt 0:00:51]} 27. Be3 {[%emt 0:00:17]} Rc7 {[%emt 0:02:01]} 28. Nc5 {[%emt 0:00:39]} Rec6 {[%emt 0:01:05]} (28... Rb6 {might work better.} 29. a3 g5) 29. Nxb7 $18 {[%emt 0:01:08] [#] And now Nd8+ would win. White is clearly winning.} ({Weaker is} 29. Rxb7 Rxc5 30. Bxc5 Rxb7 $18) 29... Rc2+ {[%emt 0:00:41]} 30. Kf3 {[%emt 0:00:02]} R7c3 {[%emt 0:01:14]} 31. Nd6+ {[%emt 0:00:51]} Ke6 {[%emt 0:00:47]} 32. Nb5 {[%emt 0:00:12] Weighted Error Value: White=0.10 (very precise) /Black=0.33.  Mistake:       	White=1     	Black=5      Inaccurate:     	---       	Black=2      OK:         	White=10    	Black=11     Best:        	White=3     	Black=2      Strong:       	White=1     	---} 1-0

[Event "360 One Wealth GP-3 2024"]
[Site "Mumbai"]
[Date "2024.02.08"]
[Round "4.7"]
[White "Yuti Mayur Patel"]
[Black "Kherdekar Arnav"]
[Result "0-1"]
[ECO "C54"]
[WhiteElo "1426"]
[BlackElo "1693"]
[Annotator "NA RC"]
[PlyCount "128"]
[EventDate "2024.02.04"]
[EventType "swiss"]
[EventCountry "IND"]
[SourceTitle "playchess.com"]
[Source "ChessBase"]
[SourceQuality "1"]
[TimeControl "5400+30"]

1. e4 {[%emt 0:00:02]} e5 {[%emt 0:13:12]} 2. Nf3 {[%emt 0:00:07]} Nc6 {[%emt 0:00:03]} 3. Bc4 {[%emt 0:00:11]} Nf6 {[%emt 0:00:06]} 4. d3 {[%emt 0:00:05]} Bc5 {[%emt 0:00:07]} 5. c3 {[%emt 0:00:08]} d6 {[%emt 0:00:10]} 6. Nbd2 {[%emt 0:00:07]} O-O {[%emt 0:00:34]} 7. h3 {[%emt 0:00:15]} a5 {[%emt 0:00:12]} 8. Bb3 {[%emt 0:01:17]} Be6 {[%emt 0:00:18]} 9. Nf1 {[%emt 0:03:34]} d5 {[%emt 0:03:03]} 10. Qe2 {[%emt 0:00:09]} a4 {[%emt 0:03:10]} 11. Bc2 {[%emt 0:00:33]} Re8 {[%emt 0:00:48]} 12. Ng3 {[%emt 0:00:50]} dxe4 {[%emt 0:05:35]} 13. dxe4 {[%emt 0:00:26]} Qb8 {[%emt 0:04:33]} 14. Nh4 {[%emt 0:02:31]} Ne7 {[%emt 0:03:45]} 15. Bg5 {[%emt 0:02:46]} Nd7 {[%emt 0:01:35]} 16. O-O {[%emt 0:01:37]} b5 {[%emt 0:03:14]} 17. Qf3 {[%emt 0:03:47]} f6 {[%emt 0:04:52]} 18. Be3 {[%emt 0:01:08]} Qb6 {[%emt 0:01:08]} 19. Bxc5 {[%emt 0:02:44]} Qxc5 {[%emt 0:00:31]} 20. a3 {[%emt 0:02:17]} Nb6 {[%emt 0:01:43]} 21. Nhf5 {[%emt 0:16:14]} Nxf5 {[%emt 0:00:50]} 22. exf5 {[%emt 0:01:30]} Bf7 {[%emt 0:02:38]} 23. Ne4 {[%emt 0:02:57]} Qe7 {[%emt 0:00:19]} 24. Rfd1 {[%emt 0:10:49]} Rad8 {[%emt 0:01:40]} 25. Bd3 {[%emt 0:15:53]} Bb3 {[%emt 0:02:15]} 26. Re1 {[%emt 0:05:29]} c6 {[%emt 0:01:33]} 27. Nd2 {[%emt 0:02:32]} Bd5 {[%emt 0:06:09]} 28. Qe3 {[%emt 0:00:52]} Qb7 {[%emt 0:00:53]} 29. Rac1 {[%emt 0:05:30]} Re7 {[%emt 0:06:43]} 30. Qe2 {[%emt 0:02:37]} Bxg2 {[%emt 0:06:12]} 31. Kxg2 {[%emt 0:00:45]} Qd7 {[%emt 0:00:02]} 32. Ne4 {[%emt 0:03:23]} Qxd3 {[%emt 0:00:11]} 33. Qg4 {[%emt 0:00:10]} Rf8 {[%emt 0:03:35]} 34. Rcd1 {[%emt 0:00:49]} Qc4 {[%emt 0:00:19]} 35. Rd2 {[%emt 0:05:34]} Nd5 {[%emt 0:00:28]} 36. Kh2 {[%emt 0:01:12]} Kh8 {[%emt 0:02:27]} 37. Rg1 {[%emt 0:02:33]} Nf4 {[%emt 0:00:35]} 38. f3 {[%emt 0:01:10]} Qf7 {[%emt 0:01:42]} 39. Rgd1 {[%emt 0:02:08]} Nd5 {[%emt 0:00:18]} 40. Nd6 {[%emt 0:00:23]} Qg8 {[%emt 0:00:24]} 41. Rg1 {[%emt 0:01:18]} Rd8 {[%emt 0:01:27]} 42. Ne4 {[%emt 0:01:55]} Ne3 {[%emt 0:00:11]} 43. Qh5 {[%emt 0:00:17]} Rxd2+ {[%emt 0:00:07]} 44. Nxd2 {[%emt 0:00:02]} Qe8 {[%emt 0:01:01]} 45. Qh4 {[%emt 0:01:02]} Nxf5 {[%emt 0:00:15]} 46. Qe4 {[%emt 0:00:17]} Nd6 {[%emt 0:00:27]} 47. Qc2 {[%emt 0:00:26]} e4 {[%emt 0:00:39]} 48. f4 {[%emt 0:00:57]} e3 {[%emt 0:01:23]} 49. Nf3 {[%emt 0:00:16]} Qh5 {[%emt 0:02:08]} 50. Rg4 {[%emt 0:00:20]} Qf5 {[%emt 0:01:09]} 51. Qe2 {[%emt 0:00:48]} c5 {[%emt 0:00:55]} 52. Nh4 {[%emt 0:00:34]} Qd5 {[%emt 0:00:43]} 53. Nf3 {[%emt 0:00:14]} Nc4 {[%emt 0:00:41]} 54. Rg2 {[%emt 0:00:58]} Rd7 {[%emt 0:01:44]} 55. Kg3 {[%emt 0:00:27]} Qd3 {[%emt 0:00:50]} 56. h4 {[%emt 0:00:46]} Qxe2 {[%emt 0:00:11]} 57. Rxe2 {[%emt 0:00:02]} Kg8 {[%emt 0:00:02]} 58. Ne1 {[%emt 0:00:35]} Rd2 {[%emt 0:00:31]} 59. Kf3 {[%emt 0:00:18]} Rxe2 {[%emt 0:00:59]} 60. Kxe2 {[%emt 0:00:16]} Nxb2 {[%emt 0:00:16]} 61. Kxe3 {[%emt 0:00:18]} Nc4+ {[%emt 0:00:22]} 62. Ke4 {[%emt 0:00:12]} Nxa3 {[%emt 0:00:07]} 63. Nd3 {[%emt 0:00:07]} Nb1 {[%emt 0:00:16]} 64. c4 {[%emt 0:00:09]} bxc4 {[%emt 0:00:13]} 0-1

[Event "360 One Wealth GP-3 2024"]
[Site "Mumbai"]
[Date "2024.02.08"]
[Round "4.8"]
[White "Agraval, Shravana"]
[Black "Joglekar, Abhijit"]
[Result "0-1"]
[ECO "D02"]
[WhiteElo "1224"]
[BlackElo "1502"]
[Annotator "NA RC"]
[PlyCount "154"]
[EventDate "2024.02.04"]
[EventType "swiss"]
[EventCountry "IND"]
[SourceTitle "playchess.com"]
[Source "ChessBase"]
[SourceQuality "1"]
[TimeControl "5400+30"]

1. d4 {[%emt 0:00:04]} d5 {[%emt 0:18:32]} 2. Bf4 {[%emt 0:01:49]} e6 {[%emt 0:03:26]} 3. Nf3 {[%emt 0:00:08]} Nc6 {[%emt 0:00:11]} 4. e3 {[%emt 0:00:13]} Bd6 {[%emt 0:00:21]} 5. Bg3 {[%emt 0:00:06]} Nf6 {[%emt 0:00:34]} 6. c3 {[%emt 0:00:17]} O-O {[%emt 0:00:17]} 7. Nbd2 {[%emt 0:00:05]} Re8 {[%emt 0:01:22]} 8. Bd3 {[%emt 0:01:17]} e5 {[%emt 0:02:30]} 9. dxe5 {[%emt 0:00:09]} Nxe5 {[%emt 0:00:01]} 10. Nxe5 {[%emt 0:00:17]} Bxe5 {[%emt 0:00:02]} 11. Nf3 {[%emt 0:00:12]} Bd6 {[%emt 0:00:43]} 12. Qc2 {[%emt 0:00:38]} h6 {[%emt 0:02:53]} 13. O-O-O {[%emt 0:03:03]} a5 {[%emt 0:04:29]} 14. Rhe1 {[%emt 0:02:46]} Bxg3 {[%emt 0:04:02]} 15. hxg3 {[%emt 0:00:17]} c6 {[%emt 0:01:56]} 16. e4 {[%emt 0:02:52]} dxe4 {[%emt 0:02:17]} 17. Bxe4 {[%emt 0:00:28]} Qc7 {[%emt 0:00:31]} 18. Nd4 {[%emt 0:08:32]} Bd7 {[%emt 0:02:26]} 19. Nf5 {[%emt 0:02:57]} Rxe4 {[%emt 0:12:41]} 20. Ne7+ {[%emt 0:01:10]} Rxe7 {[%emt 0:00:11]} 21. Rxe7 {[%emt 0:00:06]} Qc8 {[%emt 0:00:09]} 22. Qb3 {[%emt 0:01:21]} Be6 {[%emt 0:04:30]} 23. Qxb7 {[%emt 0:00:25]} Qxb7 {[%emt 0:00:18]} 24. Rxb7 {[%emt 0:05:01]} Ne4 {[%emt 0:00:30]} 25. f3 Nxg3 26. Rc7 {[%emt 0:02:39]} Bxa2 {[%emt 0:07:08]} 27. Rxc6 {[%emt 0:00:49]} Ne2+ {[%emt 0:01:02]} 28. Kd2 {[%emt 0:01:08]} Nf4 {[%emt 0:02:51]} 29. g3 {[%emt 0:04:38]} Nh5 {[%emt 0:00:23]} 30. g4 {[%emt 0:01:19]} Nf6 {[%emt 0:01:42]} 31. Ke3 {[%emt 0:01:03]} Re8+ {[%emt 0:01:24]} 32. Kf2 {[%emt 0:00:30]} a4 {[%emt 0:01:05]} 33. Rcd6 {[%emt 0:00:52]} Re7 {[%emt 0:01:46]} 34. R1d2 {[%emt 0:03:12]} Bb3 {[%emt 0:00:00]} 35. Rc6 {[%emt 0:01:02]} Rb7 {[%emt 0:01:00]} 36. Rd8+ {[%emt 0:01:41]} Kh7 {[%emt 0:00:09]} 37. Rd2 {[%emt 0:01:54]} Nd5 {[%emt 0:01:59]} 38. Rc5 {[%emt 0:03:12]} Nf4 {[%emt 0:01:46]} 39. Re5 {[%emt 0:05:22]} g5 40. Re4 {[%emt 0:03:25]} Rb6 41. Rb4 {[%emt 0:03:54]} Rc6 {[%emt 0:03:55]} 42. Rbd4 {[%emt 0:01:27]} Kg7 {[%emt 0:00:21]} 43. Rd6 {[%emt 0:00:00]} Rc5 {[%emt 0:01:04]} 44. Rd8 {[%emt 0:06:16]} Rb5 {[%emt 0:00:38]} 45. R8d4 {[%emt 0:00:41]} Rc5 {[%emt 0:01:40]} 46. Rd8 {[%emt 0:00:20]} Bc4 {[%emt 0:02:29]} 47. R8d4 {[%emt 0:00:53]} Ne6 {[%emt 0:00:57]} 48. Rd6 {[%emt 0:02:35]} Rb5 {[%emt 0:01:57]} 49. Rc6 {[%emt 0:01:16]} Bb3 {[%emt 0:01:19]} 50. Rcd6 {[%emt 0:00:45]} Nc5 {[%emt 0:00:54]} 51. R6d4 {[%emt 0:01:42]} Be6 {[%emt 0:00:59]} 52. Rb4 {[%emt 0:00:43]} Ra5 {[%emt 0:00:21]} 53. Ke3 {[%emt 0:02:31]} Nb3 {[%emt 0:00:29]} 54. Rd6 {[%emt 0:00:59]} Re5+ {[%emt 0:01:42]} 55. Re4 {[%emt 0:01:58]} Ra5 56. Rb4 {[%emt 0:01:39]} Ra7 {[%emt 0:02:02]} 57. c4 {[%emt 0:02:53]} Na5 {[%emt 0:03:31]} 58. Rxe6 {[%emt 0:05:43]} fxe6 {[%emt 0:00:47]} 59. Rxa4 {[%emt 0:01:55]} Kf6 {[%emt 0:02:08]} 60. Ke4 {[%emt 0:00:39]} Ke7 {[%emt 0:00:30]} 61. b4 {[%emt 0:00:00]} Nc6 {[%emt 0:00:16]} 62. Rxa7+ {[%emt 0:00:00]} Nxa7 {[%emt 0:00:01]} 63. Kd4 {[%emt 0:00:00]} Kd7 {[%emt 0:01:22]} 64. b5 {[%emt 0:00:35]} Kd6 {[%emt 0:01:10]} 65. c5+ {[%emt 0:00:00]} Kd7 {[%emt 0:00:48]} 66. Kc4 {[%emt 0:00:00]} Nc8 {[%emt 0:00:28]} 67. Kd4 {[%emt 0:00:22]} Ne7 {[%emt 0:00:50]} 68. Ke5 {[%emt 0:00:10]} Ng6+ {[%emt 0:00:41]} 69. Kf6 {[%emt 0:00:20]} Nh4 {[%emt 0:01:07]} 70. b6 {[%emt 0:01:40]} Nxf3 {[%emt 0:00:50]} 71. b7 {[%emt 0:00:00]} Kc7 {[%emt 0:00:19]} 72. c6 {[%emt 0:01:16]} Nd4 {[%emt 0:00:51]} 73. Ke5 {[%emt 0:00:00]} Nxc6+ {[%emt 0:00:48]} 74. Kxe6 {[%emt 0:00:00]} Nd4+ {[%emt 0:00:44]} 75. Kf6 {[%emt 0:00:00]} Kxb7 {[%emt 0:00:14]} 76. Kg6 {[%emt 0:00:00]} Kc6 {[%emt 0:00:42]} 77. Kxh6 {[%emt 0:00:00]} Nf3 {[%emt 0:00:24]} 0-1

[Event "360 One Wealth GP-3 2024"]
[Site "Mumbai"]
[Date "2024.02.08"]
[Round "4.9"]
[White "Sunil, Vaidya"]
[Black "Reyaansh Venkat"]
[Result "1-0"]
[ECO "D34"]
[WhiteElo "1402"]
[BlackElo "1201"]
[Annotator "NA RC"]
[PlyCount "91"]
[EventDate "2024.02.04"]
[EventType "swiss"]
[EventCountry "IND"]
[SourceTitle "playchess.com"]
[Source "ChessBase"]
[SourceQuality "1"]
[TimeControl "5400+30"]

1. d4 {[%emt 0:00:07]} d5 {[%emt 0:00:17]} 2. Nf3 {[%emt 0:00:43]} Nf6 {[%emt 0:00:16]} 3. g3 {[%emt 0:00:33]} Bf5 {[%emt 0:03:12]} 4. Bg2 {[%emt 0:00:20]} e6 {[%emt 0:02:29]} 5. O-O {[%emt 0:00:21]} c5 {[%emt 0:04:28]} 6. c4 {[%emt 0:01:07]} Nc6 {[%emt 0:03:18]} 7. cxd5 {[%emt 0:04:20]} exd5 {[%emt 0:04:13]} 8. Nc3 {[%emt 0:04:00]} Be7 {[%emt 0:02:55]} 9. Bg5 {[%emt 0:02:33]} O-O {[%emt 0:03:55]} 10. e3 {[%emt 0:01:25]} h6 {[%emt 0:17:20]} 11. Bxf6 {[%emt 0:00:57]} Bxf6 {[%emt 0:00:31]} 12. dxc5 {[%emt 0:01:31]} Be6 {[%emt 0:03:57]} 13. Nd4 {[%emt 0:03:22]} Nxd4 {[%emt 0:05:23]} 14. exd4 {[%emt 0:01:45]} Qd7 {[%emt 0:02:21]} 15. Re1 {[%emt 0:02:26]} Rac8 {[%emt 0:03:46]} 16. Rc1 {[%emt 0:02:48]} Rfe8 {[%emt 0:05:37]} 17. b4 {[%emt 0:04:14]} b6 {[%emt 0:03:02]} 18. Qd3 {[%emt 0:02:08]} Bf5 {[%emt 0:09:51]} 19. Qd2 {[%emt 0:06:44]} Be6 {[%emt 0:07:16]} 20. Re3 {[%emt 0:03:30]} a5 {[%emt 0:01:35]} 21. a3 {[%emt 0:01:41]} bxc5 {[%emt 0:01:11]} 22. bxc5 {[%emt 0:00:16]} Rb8 {[%emt 0:01:24]} 23. Ne2 {[%emt 0:02:38]} Qb5 {[%emt 0:02:25]} 24. h4 {[%emt 0:01:46]} Qb2 {[%emt 0:00:44]} 25. Rc2 {[%emt 0:03:15]} Qa1+ {[%emt 0:00:48]} 26. Kh2 {[%emt 0:01:51]} Bg4 {[%emt 0:03:45]} 27. Nc3 {[%emt 0:02:20]} Rxe3 {[%emt 0:02:57]} 28. Qxe3 {[%emt 0:01:18]} Qxa3 {[%emt 0:00:38]} 29. Nxd5 {[%emt 0:01:27]} Qxe3 {[%emt 0:00:29]} 30. Nxe3 {[%emt 0:06:13]} Bc8 {[%emt 0:00:44]} 31. d5 {[%emt 0:01:08]} Ba6 {[%emt 0:01:28]} 32. Be4 {[%emt 0:01:43]} a4 {[%emt 0:00:49]} 33. d6 {[%emt 0:01:20]} a3 {[%emt 0:02:29]} 34. c6 {[%emt 0:01:44]} Rb2 {[%emt 0:00:51]} 35. Rxb2 {[%emt 0:02:20]} Bxb2 {[%emt 0:00:24]} 36. d7 {[%emt 0:01:54]} Bf6 {[%emt 0:00:13]} 37. c7 {[%emt 0:00:17]} g6 {[%emt 0:00:35]} 38. d8=Q+ {[%emt 0:00:30]} Bxd8 {[%emt 0:00:05]} 39. cxd8=Q+ {[%emt 0:00:11]} Kh7 {[%emt 0:00:09]} 40. Qa5 {[%emt 0:00:26]} Bc8 {[%emt 0:00:26]} 41. Qxa3 {[%emt 0:00:11]} Be6 {[%emt 0:00:11]} 42. Qf8 {[%emt 0:00:21]} Bb3 {[%emt 0:00:12]} 43. Bd5 {[%emt 0:00:17]} Bxd5 {[%emt 0:00:04]} 44. Nxd5 {[%emt 0:00:14]} g5 {[%emt 0:00:12]} 45. h5 {[%emt 0:00:10]} f5 {[%emt 0:00:19]} 46. Nf6# {[%emt 0:00:08]} 1-0